bitfinex/quotes_ETHUSD_20241216
["timestamp","ask_amount","ask_price","bid_price","bid_amount"]
[1734316636277,6.68553569,3970.1,3970.0,4.26318745]
[1734316637013,6.68553569,3970.1,3970.0,5.84127165]
[1734316637679,6.68553569,3970.1,3970.0,4.26511502]
[1734316640379,6.68553569,3970.1,3970.0,7.42149505]
[1734316640680,6.68553569,3970.1,3970.0,7.94957354]
[1734316640681,6.66,3970.1,3970.0,7.94957354]
[1734316641364,6.66,3970.1,3970.0,7.94987651]
[1734316642179,6.66,3970.1,3970.0,4.56540839]
[1734316642387,6.66,3970.1,3970.0,2.75378502]
[1734316642618,6.66,3970.1,3970.0,4.33242242]
[1734316642824,6.66,3970.1,3970.0,1.1802072]
[1734316643190,0.8047,3970.0,3969.7,1.05246732]
[1734316643488,0.8047,3970.0,3969.4,1.05246732]
[1734316643719,3.33,3969.7,3969.4,1.05246732]
[1734316644088,3.33,3969.7,3969.5,2.23330937]
[1734316644294,3.33,3969.7,3969.6,1.18084205]
[1734316644816,3.33,3969.7,3969.6,2.23330937]
[1734316644974,3.33,3969.7,3969.6,1.18084205]
[1734316645171,3.33,3969.7,3969.6,2.23330937]
[1734316645493,3.33,3969.7,3969.6,1.18084205]
[1734316646586,3.33,3969.7,3969.6,1.19432424]
[1734316646788,3.33,3969.7,3969.5,1.05246732]
[1734316647024,3.33,3969.7,3969.6,2.24679156]
[1734316647182,3.33,3969.7,3969.6,1.19432424]
[1734316648127,3.33,3969.7,3969.6,2.2474165]
[1734316648343,3.33,3969.7,3969.6,1.19432424]
[1734316648558,3.33,3969.7,3969.6,2.24743436]
[1734316648769,4.1554,3969.7,3969.6,1.19432424]
[1734316649067,4.1554,3969.7,3969.3,1.05311012]
[1734316649566,3.33,3969.5,3969.4,1.19449206]
[1734316649770,3.32090456,3969.5,3969.4,2.24760218]
[1734316650154,3.32090456,3969.5,3969.4,2.70605206]
[1734316650662,3.32090456,3969.5,3969.4,5.87697647]
[1734316651032,3.32090456,3969.5,3969.4,4.68264342]
[1734316651232,3.32090456,3969.5,3969.4,5.87784118]
[1734316651688,3.32090456,3969.5,3969.4,4.36628118]
[1734316651839,3.32090456,3969.5,3969.4,1.19431552]
[1734316652039,3.32090456,3969.5,3969.4,1.57951964]
[1734316652249,3.32090456,3969.5,3969.4,3.61613929]
[1734316652490,6.65090456,3969.5,3969.4,4.29833623]
[1734316653776,6.65090456,3969.5,3969.4,6.40433854]
[1734316655116,3.68290456,3969.5,3969.4,10.50344225]
[1734316655269,3.68290456,3969.5,3969.4,8.48873296]
[1734316655270,0.88633312,3969.5,3969.4,8.48873296]
[1734316655480,0.88633312,3969.5,3969.4,9.27283296]
[1734316655691,0.88633312,3969.5,3969.4,12.43133485]
[1734316655975,0.88633312,3969.5,3969.4,11.23701933]
[1734316656137,3.12e-06,3969.5,3969.4,13.22733205]
[1734316656334,3.12e-06,3969.5,3969.4,13.22721134]
[1734316656536,3.12e-06,3969.5,3969.4,8.55983016]
[1734316656788,3.12e-06,3969.5,3969.4,5.87843343]
[1734316656936,3.12e-06,3969.5,3969.4,3.10402071]
[1734316657384,3.12e-06,3969.5,3969.4,4.14393761]
[1734316657607,3.12e-06,3969.5,3969.4,5.73639832]
[1734316657933,3.33000312,3969.5,3969.4,3.10402071]
[1734316658483,4.11540312,3969.5,3969.4,3.69866761]
[1734316658686,4.11540312,3969.5,3969.4,1.5797495]
[1734316658858,4.11540312,3969.5,3969.4,1.05317944]
[1734316659233,3.33000312,3969.5,3969.4,1.51156]
[1734316659454,3.33000312,3969.5,3969.4,4.65163902]
[1734316659651,3.33000312,3969.5,3969.4,3.07188952]
[1734316659873,3.33000312,3969.5,3969.4,3.14002535]
[1734316660074,3.33000312,3969.5,3969.3,1.57969583]
[1734316660287,3.33000312,3969.5,3969.4,1.05319299]
[1734316662688,3.33000312,3969.5,3969.3,1.05319299]
[1734316662859,0.8309,3969.4,3969.2,1.05319299]
[1734316663061,0.8309,3969.4,3969.1,1.05319299]
[1734316663391,0.8309,3969.4,3969.2,1.05319299]
[1734316664386,3.33000312,3969.5,3969.3,5.17859937]
[1734316664589,3.33000312,3969.5,3969.4,1.56079247]
[1734316664897,3.33000312,3969.5,3969.4,3.6177669]
[1734316665050,3.33000312,3969.5,3969.4,3.07235247]
[1734316666076,3.33000312,3969.5,3969.4,5.70601389]
[1734316666417,0.81080312,3969.5,3969.4,5.34295247]
[1734316666600,3.12e-06,3969.5,3969.4,5.64324584]
[1734316666886,3.12e-06,3969.5,3969.4,8.80363954]
[1734316667496,12.06046312,3969.7,3969.4,5.64324584]
[1734316667736,12.06046312,3969.7,3969.6,3.32304129]
[1734316667891,12.06046312,3969.7,3969.6,4.88383376]
[1734316668091,12.06046312,3969.7,3969.6,8.04413374]
[1734316668696,15.39046312,3969.7,3969.6,9.55313374]
[1734316669034,15.39046312,3969.7,3969.6,6.39283376]
[1734316670099,15.39046312,3969.7,3969.6,9.55313374]
[1734316671328,18.72046312,3969.7,3969.6,9.55313374]
[1734316671998,18.72046312,3969.7,3969.6,6.39283376]
[1734316672351,12.42276312,3969.7,3969.6,6.39283376]
[1734316672696,12.42276312,3969.7,3969.6,9.55329764]
[1734316673096,8.64414312,3969.7,3969.6,6.39283376]
[1734316673329,6.12506312,3969.7,3969.6,6.39283376]
[1734316674210,9.45506312,3969.7,3969.6,6.39283376]
[1734316675529,4.41690312,3969.7,3969.6,6.39283376]
[1734316676837,4.41690312,3969.7,3969.6,9.55267325]
[1734316677012,7.74690312,3969.7,3969.6,8.34354218]
[1734316677423,7.74690312,3969.7,3969.6,6.39283376]
[1734316677627,7.74690312,3969.7,3969.6,9.55256397]
[1734316678638,7.74690312,3969.7,3969.6,6.98629968]
[1734316678870,7.74690312,3969.7,3969.6,3.82656947]
[1734316679681,11.07690312,3969.7,3969.6,2.82036247]
[1734316679982,11.07690312,3969.7,3969.6,3.82669947]
[1734316682144,14.40690312,3969.7,3969.6,3.82669947]
[1734316683289,8.10933312,3969.7,3969.6,8.15627076]
[1734316683592,3.99933312,3969.7,3969.6,10.74165245]
[1734316683746,2.65933312,3969.7,3969.6,13.38965245]
[1734316683943,6.66,3970.1,3969.7,0.30029337]
[1734316684155,6.66,3970.1,3970.0,5.67602697]
[1734316684380,6.66,3970.1,3970.0,5.72781944]
[1734316684581,6.66,3970.1,3970.0,2.56834247]
[1734316684782,6.66,3970.1,3970.0,1.00755]
[1734316685347,6.66,3970.1,3970.0,2.56834247]
[1734316687371,6.66,3970.1,3970.0,5.72793831]
[1734316688048,6.66,3970.1,3970.0,2.56834247]
[1734316688688,6.66,3970.1,3970.0,2.51655]
[1734316688890,6.66,3970.1,3970.0,4.07734247]
[1734316695004,6.66,3970.1,3970.0,4.20182666]
[1734316701470,6.66,3970.1,3970.0,4.50212003]
[1734316701471,0.36295,3970.1,3970.0,4.50212003]
[1734316701685,0.36295,3970.1,3970.0,7.66124159]
[1734316701901,0.7262,3970.3,3970.2,3.02025]
[1734316702102,0.7262,3970.3,3970.2,6.17930899]
[1734316702418,0.7262,3970.3,3970.2,6.53183205]
[1734316702615,0.7262,3970.3,3970.2,4.58104247]
[1734316703017,0.8022,3971.3,3971.2,1.51087]
[1734316703179,0.8022,3971.3,3971.2,4.64980488]
[1734316703535,0.7541,3973.0,3971.8,1.51064]
[1734316703695,0.7541,3973.3,3971.8,1.51064]
[1734316704022,3.2709,3973.3,3971.8,1.51064]
[1734316704318,0.7541,3973.1,3971.8,1.51064]
[1734316704623,2.06347129,3973.5,3971.8,1.51064]
[1734316704624,0.78733822,3973.0,3971.8,1.51064]
[1734316705237,0.78733822,3973.0,3971.5,1.0526133]
[1734316705434,0.78733822,3973.0,3972.1,1.5105]
[1734316705579,0.78733822,3973.0,3972.3,1.51042]
[1734316706230,0.7541,3973.0,3972.3,1.51042]
[1734316706917,0.7541,3973.0,3972.4,1.25868]
[1734316707251,0.7541,3973.0,3972.9,1.25852]
[1734316713647,0.7541,3973.0,3972.4,1.0526133]
[1734316713973,0.7541,3973.0,3972.1,1.25876]
[1734316714475,0.7541,3973.0,3971.5,4.44469124]
[1734316714476,0.7541,3973.0,3971.8,1.25884]
[1734316714674,0.7541,3973.0,3971.8,1.62860837]
[1734316714977,0.7541,3973.0,3971.9,1.25884]
[1734316715159,0.7541,3973.0,3972.0,0.36976837]
[1734316715777,0.7541,3973.0,3972.0,1.62855837]
[1734316717284,2.51675,3973.4,3971.4,1.0526133]
[1734316717285,2.06347129,3973.4,3971.4,1.0526133]
[1734316717479,2.06347129,3973.0,3971.3,1.0526133]
[1734316717696,0.8253,3972.4,3971.3,1.42238167]
[1734316717836,0.8253,3971.9,3971.3,0.36976837]
[1734316718032,0.8253,3971.8,3971.2,1.0526133]
[1734316718236,0.8253,3971.8,3970.8,0.36976837]
[1734316720253,0.8253,3971.7,3970.8,0.36976837]
[1734316720451,0.8253,3971.5,3970.8,0.36976837]
[1734316722347,0.8253,3971.5,3971.1,1.25909]
[1734316722551,0.8253,3971.5,3971.2,0.36976837]
[1734316723335,4.1553,3971.5,3971.2,0.36976837]
[1734316726435,7.4853,3971.5,3971.2,0.36976837]
[1734316727108,6.66,3971.5,3971.2,0.36976837]
[1734316727315,6.66,3971.5,3971.3,1.25901]
[1734316727460,6.66,3971.5,3971.4,0.36976837]
[1734316728582,0.8056,3971.4,3970.9,0.36976837]
[1734316728741,0.8056,3971.4,3971.0,0.36976837]
[1734316729493,9.99,3971.5,3971.2,1.25906]
[1734316730537,9.99,3971.5,3971.2,1.62882837]
[1734316730834,9.99,3971.5,3971.2,0.36976837]
[1734316731595,0.7512,3971.4,3970.5,1.0526133]
[1734316731799,0.7512,3971.4,3970.5,1.62904837]
[1734316732101,0.7512,3971.4,3970.6,0.36976837]
[1734316732686,0.7512,3971.4,3970.6,1.62900837]
[1734316732915,0.7512,3971.4,3970.6,0.36976837]
[1734316733234,0.7512,3971.4,3970.7,1.2592]
[1734316733434,0.7512,3971.4,3970.8,0.36976837]
[1734316734861,0.7567,3971.3,3970.4,0.26243983]
[1734316735250,0.7567,3971.2,3970.4,0.26243983]
[1734316737016,0.7567,3971.2,3970.4,0.6322082]
[1734316737270,0.7567,3971.2,3970.4,0.36976837]
[1734316737427,0.7567,3971.2,3969.8,3.92308855]
[1734316737761,0.7757,3971.0,3970.0,1.25944]
[1734316737929,0.7757,3971.0,3970.0,0.36976837]
[1734316738120,0.7757,3970.9,3970.0,0.36976837]
[1734316738845,0.7757,3970.9,3970.0,1.13166837]
[1734316739159,0.7757,3970.9,3970.5,1.25928]
[1734316739929,0.7757,3970.9,3970.1,1.42238167]
[1734316740117,0.7757,3970.9,3970.3,1.25932]
[1734316740312,0.7757,3970.9,3970.3,0.36976837]
[1734316740513,3.33,3971.4,3970.4,1.62907837]
[1734316740514,0.7864,3971.2,3970.4,1.62907837]
[1734316740743,3.33,3971.4,3970.7,1.25922]
[1734316740908,3.33,3971.4,3970.8,1.25919]
[1734316741122,3.33,3971.4,3970.6,1.8544133]
[1734316741351,3.33,3971.4,3970.9,1.25916]
[1734316741554,3.33,3971.4,3971.0,1.25911]
[1734316741769,3.33,3971.4,3970.7,1.42238167]
[1734316741770,3.33,3971.4,3971.2,1.25906]
[1734316742653,3.33,3971.4,3970.9,1.25913]
[1734316742882,3.33,3971.4,3970.9,0.36976837]
[1734316743051,3.33,3971.4,3971.1,1.25908]
[1734316744028,3.33,3971.4,3971.2,1.25905]
[1734316745116,3.33,3971.4,3971.3,1.25903]
[1734316745402,3.33,3971.4,3971.3,1.62879837]
[1734316745518,3.33,3971.4,3971.3,2.38179837]
[1734316746211,3.33,3971.4,3971.3,5.51650776]
[1734316746418,2.071,3971.4,3971.3,4.44526966]
[1734316746618,2.071,3971.4,3971.3,6.00112973]
[1734316746854,2.071,3971.4,3971.3,8.10678226]
[1734316747632,2.071,3971.4,3971.3,6.00112973]
[1734316747831,2.071,3971.4,3971.3,8.10678226]
[1734316748034,26.19309,3971.5,3971.4,3.89076837]
[1734316748257,26.19309,3971.5,3971.4,7.55228097]
[1734316748626,26.19309,3971.5,3971.4,3.93762844]
[1734316749268,19.89824,3971.5,3971.4,6.56276586]
[1734316749569,19.89824,3971.5,3971.4,6.21636988]
[1734316749771,16.17175043,3971.5,3971.4,8.93100107]
[1734316750069,9.87690043,3971.5,3971.4,8.93100107]
[1734316750224,9.87690043,3971.5,3971.4,7.72536988]
[1734316750566,1.16798933,3971.5,3971.4,8.93017705]
[1734316750721,0.51723736,3971.5,3971.4,10.77989988]
[1734316750921,0.51723736,3971.5,3971.4,3.93762844]
[1734316751163,0.51723736,3971.5,3971.4,6.56194115]
[1734316751332,0.51723736,3971.5,3971.4,5.51235446]
[1734316751534,0.51723736,3971.5,3971.4,2.30885]
[1734316751962,0.51723736,3971.5,3971.4,1.62876837]
[1734316752348,0.51723736,3971.5,3971.4,3.14121184]
[1734316752669,2.51631,3974.1,3971.4,3.14121184]
[1734316752670,0.7779,3973.1,3971.5,0.36976101]
[1734316752839,0.7779,3973.1,3972.8,1.25854]
[1734316753073,0.7779,3973.1,3972.9,1.25851]
[1734316753377,0.7779,3973.1,3972.7,1.25856]
[1734316753898,0.7779,3973.1,3972.3,1.04958244]
[1734316754102,0.7779,3973.1,3972.6,1.25861]
[1734316754706,0.7779,3973.1,3972.4,1.25868]
[1734316755061,0.7779,3973.1,3972.5,1.25864]
[1734316755822,0.7779,3973.1,3972.3,1.04958244]
[1734316755968,0.7779,3973.1,3972.2,2.30830244]
[1734316757460,0.7779,3973.1,3972.2,1.04958244]
[1734316757664,0.7779,3973.1,3971.8,2.09916488]
[1734316757665,0.8192,3972.9,3971.8,1.04958244]
[1734316757985,0.8192,3972.9,3971.7,1.04958244]
[1734316757986,0.8192,3972.8,3971.7,1.04958244]
[1734316758405,0.8192,3972.8,3971.9,1.00707]
[1734316758704,0.8192,3972.8,3972.0,1.00704]
[1734316759760,0.8192,3972.8,3971.9,0.36976776]
[1734316761411,2.51673,3973.5,3971.5,3.63784495]
[1734316761412,0.8192,3973.4,3971.6,1.04958244]
[1734316761607,0.8192,3972.2,3971.3,1.57437366]
[1734316761836,0.8192,3972.2,3971.0,1.04958244]
[1734316762137,0.7833,3972.0,3971.0,0.36976776]
[1734316762280,0.7833,3972.0,3971.1,0.36976776]
[1734316762794,2.51772,3971.9,3970.7,1.04958244]
[1734316763122,0.7678,3971.8,3970.7,1.4193502]
[1734316763327,0.7678,3971.8,3970.8,0.36976776]
[1734316764121,0.7678,3971.8,3970.8,1.4193502]
[1734316764632,3.33,3970.9,3970.8,1.4193502]
[1734316764785,3.33,3970.9,3970.8,0.36976776]
[1734316765604,3.33,3970.9,3970.5,0.36976776]
[1734316765806,3.33,3970.9,3970.6,0.36976776]
[1734316766194,3.33,3970.9,3970.7,1.00736]
[1734316766397,3.33,3970.9,3970.8,0.36976776]
[1734316766792,3.33,3970.9,3970.8,2.9312993]
[1734316767433,6.66,3970.9,3970.8,2.9312993]
[1734316767919,6.66,3970.9,3970.8,1.88079776]
[1734316768139,6.66,3970.9,3970.8,2.9312993]
[1734316769505,6.66,3970.9,3970.8,1.88079776]
[1734316769812,6.66,3970.9,3970.8,2.9312993]
[1734316770140,6.66,3970.9,3970.8,1.88079776]
[1734316770343,9.99,3970.9,3970.8,4.99171056]
[1734316771198,9.99,3970.9,3970.8,1.88079776]
[1734316771399,9.99,3970.9,3970.8,4.99174092]
[1734316773201,9.99,3970.9,3970.8,1.88079776]
[1734316773643,9.99,3970.9,3970.8,2.93128328]
[1734316774148,9.99,3970.9,3970.8,1.05048552]
[1734316774445,9.99,3970.9,3970.6,2.56158552]
[1734316774627,9.99,3970.9,3970.6,1.5111]
[1734316775149,9.99,3970.9,3970.5,1.05048552]
[1734316775150,9.99,3970.9,3970.7,1.51106]
[1734316776001,9.99,3970.9,3970.6,1.42025328]
[1734316776346,9.99,3970.9,3970.5,1.05048552]
[1734316776644,9.99,3970.9,3970.2,1.05048552]
[1734316776812,9.99,3970.9,3970.1,2.93153328]
[1734316776997,9.99,3970.9,3970.1,1.88104776]
[1734316777202,0.7993,3970.8,3970.0,1.05048552]
[1734316777506,0.7993,3970.8,3969.8,1.51138]
[1734316778136,0.7993,3970.8,3969.8,0.36976776]
[1734316778300,0.7993,3970.8,3969.9,0.36976776]
[1734316780103,0.7993,3970.8,3970.1,1.51129]
[1734316780338,0.7993,3970.8,3969.9,0.36976776]
[1734316780603,0.7993,3970.8,3970.0,1.51133]
[1734316781344,0.7993,3970.8,3969.9,0.36976776]
[1734316782203,0.7993,3970.8,3970.4,1.51117]
[1734316782546,0.7993,3970.8,3970.5,0.36976776]
[1734316785747,0.7993,3970.8,3970.6,1.5111]
[1734316786942,0.7993,3970.8,3970.5,0.36976776]
[1734316787187,9.99,3970.9,3970.8,1.51103]
[1734316787639,9.99,3970.9,3970.6,1.5111]
[1734316788139,9.98090823,3970.9,3970.7,1.51106]
[1734316790052,9.98090823,3970.9,3970.8,1.51103]
[1734316799710,9.98090823,3970.9,3970.5,0.36976776]
[1734316799711,9.98090823,3970.9,3970.7,1.05048552]
[1734316799943,9.98090823,3970.9,3970.5,1.51112]
[1734316800083,9.98090823,3970.9,3970.8,1.51103]
[1734316800426,9.98090823,3970.9,3970.8,2.93128328]
[1734316800633,9.98090823,3970.9,3970.8,5.85178263]
[1734316800809,6.20342823,3970.9,3970.8,4.58251775]
[1734316801131,8.23e-06,3970.9,3970.8,7.21111702]
[1734316801353,8.23e-06,3970.9,3970.8,4.58251775]
[1734316801490,8.23e-06,3970.9,3970.8,6.87680343]
[1734316801690,8.23e-06,3970.9,3970.8,6.87792466]
[1734316802011,8.23e-06,3970.9,3970.8,3.41841002]
[1734316803583,8.23e-06,3970.9,3970.8,6.04802466]
[1734316803993,8.23e-06,3970.9,3970.8,4.21111002]
[1734316804509,8.23e-06,3970.9,3970.8,5.83206627]
[1734316804723,8.23e-06,3970.9,3970.8,4.21111002]
[1734316804926,8.23e-06,3970.9,3970.8,7.36956914]
[1734316805503,8.23e-06,3970.9,3970.8,4.21111002]
[1734316805902,8.23e-06,3970.9,3970.8,7.37041626]
[1734316806090,8.23e-06,3970.9,3970.8,4.21111002]
[1734316808288,8.23e-06,3970.9,3970.8,4.33768321]
[1734316808490,8.23e-06,3970.9,3970.8,5.84668321]
[1734316808723,23.31,3971.4,3971.3,1.25903]
[1734316808889,23.31,3971.4,3971.3,7.64408663]
[1734316809094,17.015,3971.4,3971.3,7.53158131]
[1734316809293,12.335,3971.4,3971.3,31.97535904]
[1734316809571,12.335,3971.4,3971.3,13.47473169]
[1734316809717,12.335,3971.4,3971.3,9.4548809]
[1734316809920,6.04,3971.4,3971.3,7.53158131]
[1734316810217,5.91009265,3971.4,3971.3,7.53158131]
[1734316810448,5.74504444,3971.4,3971.3,7.53158131]
[1734316810917,4.44e-06,3971.4,3971.3,8.53728231]
[1734316811349,4.44e-06,3971.4,3971.3,10.4605819]
[1734316812087,4.44e-06,3971.4,3971.3,11.73748572]
[1734316812229,4.44e-06,3971.4,3971.3,4.71994185]
[1734316812433,4.44e-06,3971.4,3971.3,2.79664226]
[1734316812930,4.44e-06,3971.4,3971.3,3.16641002]
[1734316813147,4.44e-06,3971.4,3971.3,8.38555289]
[1734316813413,4.44e-06,3971.4,3971.3,9.1445662]
[1734316813565,4.44e-06,3971.4,3971.3,5.98948131]
[1734316813881,4.44e-06,3971.4,3971.3,5.79533409]
[1734316814041,4.44e-06,3971.4,3971.3,2.79664226]
[1734316814370,4.44e-06,3971.4,3971.3,3.11513005]
[1734316814862,4.44e-06,3971.4,3971.3,1.57751779]
[1734316815077,4.44e-06,3971.4,3971.2,1.57751779]
[1734316815276,4.44e-06,3971.4,3971.2,3.11581882]
[1734316815421,4.44e-06,3971.4,3971.2,1.57751779]
[1734316815623,4.44e-06,3971.4,3971.2,1.05164881]
[1734316815624,0.7909,3971.3,3971.2,1.05164881]
[1734316816024,0.7909,3971.3,3971.1,1.05164881]
[1734316817959,2.08386327,3971.3,3971.1,1.05164881]
[1734316818271,0.7622,3971.2,3970.7,1.05164881]
[1734316818586,0.7622,3971.2,3970.6,1.05164881]
[1734316818740,0.7622,3971.2,3970.7,1.05164881]
[1734316819629,0.7622,3971.2,3970.9,2.05895881]
[1734316819827,0.7622,3971.2,3971.0,1.18125822]
[1734316820027,0.7622,3971.2,3971.1,1.18125822]
[1734316820954,0.7622,3971.2,3970.8,1.05164881]
[1734316821281,0.7622,3971.2,3970.9,1.18122845]
[1734316821436,0.7622,3971.2,3970.7,1.05164881]
[1734316821830,0.7622,3971.2,3970.7,2.60264736]
[1734316822032,0.7622,3971.2,3971.1,1.00727]
[1734316822330,0.7622,3971.2,3971.1,3.2401496]
[1734316822584,0.7622,3971.2,3971.1,1.18123079]
[1734316822799,4.44e-06,3971.4,3971.1,1.55099855]
[1734316822946,4.44e-06,3971.4,3971.3,2.05890526]
[1734316823132,4.44e-06,3971.4,3971.3,3.24013605]
[1734316823535,4.44e-06,3971.4,3971.3,2.55821855]
[1734316823797,4.44e-06,3971.4,3971.3,1.37698776]
[1734316824084,4.44e-06,3971.4,3971.3,4.96524419]
[1734316824233,23.31,3971.5,3971.4,1.37696776]
[1734316824431,23.31,3971.5,3971.4,2.55819855]
[1734316824653,23.31,3971.5,3971.4,4.13312419]
[1734316824862,19.53309,3971.5,3971.4,4.13312419]
[1734316825171,16.65358975,3971.5,3971.4,4.40240628]
[1734316825373,12.92719823,3971.5,3971.4,5.97733192]
[1734316825594,16.65,3973.1,3973.0,1.00679]
[1734316825775,12.0096327,3973.1,3973.0,3.47882367]
[1734316825983,12.0096327,3973.1,3973.0,2.9514834]
[1734316826514,12.0096327,3973.1,3973.0,5.57931579]
[1734316826737,12.0096327,3973.1,3973.0,2.9514834]
[1734316827860,12.0096327,3973.1,3973.0,5.05250096]
[1734316828060,12.0096327,3973.1,3973.0,7.08773988]
[1734316828295,10.7732897,3973.1,3973.0,4.4614834]
[1734316828527,10.7732897,3973.1,3973.0,5.57495282]
[1734316828728,10.7732897,3973.1,3973.0,2.9514834]
[1734316828931,6.9979097,3973.1,3973.0,5.57495282]
[1734316829118,4.4809897,3973.1,3973.0,5.57495282]
[1734316829336,4.4809897,3973.1,3973.0,2.9514834]
[1734316829909,4.4809897,3973.1,3973.0,5.57355665]
[1734316830252,4.4809897,3973.1,3973.0,2.9514834]
[1734316830412,4.4809897,3973.1,3973.0,5.04816117]
[1734316830953,4.4809897,3973.1,3973.0,1.00679]
[1734316831153,4.4809897,3973.1,3973.0,2.05523907]
[1734316831305,4.4588727,3973.1,3973.0,2.05523907]
[1734316831750,4.48286741,3973.1,3973.0,1.00679]
[1734316831908,4.48286741,3973.1,3973.0,4.49185222]
[1734316832124,4.48286741,3973.1,3973.0,2.91924018]
[1734316832324,4.4588727,3973.1,3973.0,2.91924018]
[1734316832524,4.4588727,3973.1,3973.0,4.49150794]
[1734316832765,4.52525458,3973.1,3973.0,4.12126566]
[1734316832964,4.52525458,3973.1,3973.0,1.00679]
[1734316834349,4.4588727,3973.1,3973.0,1.00679]
[1734316834846,4.52517705,3973.1,3973.0,1.00679]
[1734316835485,4.52517705,3973.1,3972.8,0.12502953]
[1734316835645,4.52517705,3973.1,3972.8,1.13186953]
[1734316835842,4.52517705,3973.1,3972.9,1.00681]
[1734316836973,4.52517705,3973.1,3972.9,1.51021]
[1734316840373,4.52517705,3973.1,3972.8,0.12502953]
[1734316840677,4.52517705,3973.1,3972.3,3.08270776]
[1734316840678,0.53494771,3973.0,3972.3,1.04791582]
[1734316840881,4.52517705,3973.1,3972.7,1.5103]
[1734316841034,0.06613318,3972.9,3972.7,1.5103]
[1734316841235,4.4588727,3973.1,3972.9,1.51022]
[1734316842677,4.4588727,3973.1,3972.9,1.83757109]
[1734316843381,4.4588727,3973.1,3972.9,2.88548691]
[1734316843619,4.4588727,3973.1,3972.9,1.83757109]
[1734316844892,4.4588727,3973.1,3972.9,2.88548691]
[1734316846815,4.4588727,3973.1,3972.9,2.55813582]
[1734316847125,0.06403922,3973.0,3972.9,2.55813582]
[1734316847335,0.06403922,3973.0,3972.9,1.51022]
[1734316848135,0.06403922,3973.0,3972.9,2.55776189]
[1734316848495,0.06403922,3973.0,3972.9,1.51022]
[1734316848933,0.06403922,3973.0,3972.9,2.55776189]
[1734316849324,0.06403922,3973.0,3972.9,1.51022]
[1734316850039,0.06403922,3973.0,3972.9,2.55776189]
[1734316851561,0.7796,3972.9,3972.6,0.12706984]
[1734316851897,0.06401802,3972.8,3972.6,0.12706984]
[1734316852241,0.06401802,3972.8,3972.7,1.5103]
[1734316852799,4.4588727,3973.1,3972.8,1.51026]
[1734316854242,4.4588727,3973.1,3972.6,1.63739984]
[1734316854401,4.4588727,3973.1,3972.7,1.5103]
[1734316855522,4.4588727,3973.1,3972.6,0.12706984]
[1734316855761,4.4588727,3973.1,3972.4,1.005582]
[1734316855926,5.31571997,3973.1,3972.3,1.51045]
[1734316856125,5.31571997,3973.1,3972.2,1.37489298]
[1734316856126,5.31571997,3973.1,3972.2,0.32735109]
[1734316856721,5.31571997,3973.1,3972.2,1.83783109]
[1734316856957,5.31571997,3973.1,3972.4,1.5104]
[1734316857256,5.31571997,3973.1,3972.2,0.32735109]
[1734316857459,0.7796,3973.0,3972.2,0.32735109]
[1734316858345,0.7796,3973.0,3972.2,1.83784109]
[1734316858751,0.7796,3973.0,3972.2,0.32735109]
[1734316858962,0.7796,3973.0,3972.4,1.5104]
[1734316859635,0.7797,3972.9,3972.0,0.26197813]
[1734316860163,0.7797,3972.9,3972.0,1.77253813]
[1734316861929,0.7797,3972.9,3972.0,0.26197813]
[1734316862117,0.85113456,3972.8,3972.0,0.26197813]
[1734316862366,0.7881,3972.6,3972.0,0.26197813]
[1734316862741,0.06288104,3972.5,3972.0,0.26197813]
[1734316862942,0.7881,3972.4,3972.0,0.26197813]
[1734316863166,0.7881,3972.4,3971.8,1.24064121]
[1734316863367,0.85079409,3972.3,3971.8,1.24064121]
[1734316863605,0.7881,3972.1,3971.8,1.24064121]
[1734316864094,0.7881,3971.9,3971.8,1.24064121]
[1734316864469,0.85042019,3971.9,3971.8,1.24064121]
[1734316865308,0.85042019,3971.9,3971.2,0.26124417]
[1734316866208,0.85042019,3971.9,3970.6,0.32735109]
[1734316866818,0.7881,3971.7,3970.6,0.32735109]
[1734316867280,4.1181,3970.9,3970.6,0.32735109]
[1734316867684,0.0613927,3970.8,3970.6,0.32735109]
[1734316868657,0.0613927,3970.8,3970.7,2.06347129]
[1734316868858,0.0613927,3970.8,3970.7,2.72503011]
[1734316869161,3.33,3970.9,3970.8,1.51103]
[1734316869368,3.33,3970.9,3970.8,3.7168794]
[1734316869580,3.33,3970.9,3970.8,5.815199]
[1734316869812,3.33,3970.9,3970.8,3.7168794]
[1734316869990,6.66,3970.9,3970.8,5.81521838]
[1734316870199,6.66,3970.9,3970.8,5.2268794]
[1734316871065,6.66,3970.9,3970.8,7.32505092]
[1734316871703,6.66,3970.9,3970.8,5.2268794]
[1734316872361,9.99,3970.9,3970.8,5.2268794]
[1734316872567,9.99,3970.9,3970.8,7.32463612]
[1734316873310,3.6942,3970.9,3970.8,7.32463612]
[1734316873668,3.6942,3970.9,3970.8,7.32453108]
[1734316874233,3.6942,3970.9,3970.8,4.96282381]
[1734316874532,3.6942,3970.9,3970.8,1.51103]
[1734316874692,3.75583382,3970.9,3970.8,1.51103]
[1734316874902,3.6942,3970.9,3970.8,1.51103]
[1734316875103,7.08583382,3970.9,3970.8,1.51103]
[1734316884381,7.08583382,3970.9,3970.5,1.90015539]
[1734316884382,7.90403382,3970.9,3970.5,1.90015539]
[1734316884670,7.90403382,3970.9,3970.6,1.51108]
[1734316885358,3.33,3970.8,3970.6,1.51108]
[1734316885563,0.06130175,3970.7,3970.6,1.51108]
[1734316885903,3.33,3970.8,3970.6,1.51108]
[1734316886081,0.06130175,3970.7,3970.6,1.84528773]
[1734316886397,3.33,3970.8,3970.6,0.33420773]
[1734316886599,3.33,3970.8,3970.7,1.51106]
[1734316887203,3.33,3970.8,3970.7,1.84526773]
[1734316887355,3.33,3970.8,3970.7,3.68261882]
[1734316887850,6.66,3970.8,3970.7,3.68261882]
[1734316889166,6.66,3970.8,3970.7,1.84526773]
[1734316890691,9.99,3970.8,3970.7,1.84526773]
[1734316892289,10.0490285,3970.8,3970.7,1.84526773]
[1734316893160,13.3790285,3970.8,3970.7,1.84526773]
[1734316894670,0.7509,3970.7,3970.5,0.26110119]
[1734316894971,15.41935135,3970.8,3970.5,0.26110119]
[1734316894972,0.81201759,3970.6,3970.5,0.26110119]
[1734316895167,0.81201759,3970.6,3970.3,0.39290798]
[1734316895168,3.13757448,3970.6,3970.3,0.39290798]
[1734316895817,0.753,3970.5,3970.0,0.26144139]
[1734316896105,0.753,3970.5,3970.0,2.16582344]
[1734316896396,0.05879947,3970.4,3970.0,2.16582344]
[1734316896759,0.753,3970.3,3970.0,0.65450344]